[Event "New York Summer GM-A 2022"]
[Site "New York"]
[Date "2022.07.10"]
[Round "6.2"]
[White "Williams, Justus"]
[Black "Song, Michael"]
[Result "1/2-1/2"]
[ECO "B07"]
[WhiteElo "2390"]
[BlackElo "2409"]
[Annotator "RC"]
[PlyCount "137"]
[EventDate "2022.07.08"]
[EventType "tourn"]
[EventCountry "USA"]
[SourceTitle "playchess.com"]
[Source "ChessBase"]
[SourceQuality "1"]
[TimeControl "5400+30"]

1. d4 {[%emt 0:04:11]} d6 {[%emt 0:03:44]} 2. e4 {[%emt 0:01:39]} Nf6 {[%emt 0:00:08]} 3. Nc3 {[%emt 0:00:19]} c6 {[%emt 0:00:22]} 4. Nf3 {[%emt 0:03:57]} Bg4 {[%emt 0:02:06]} 5. Be2 {[%emt 0:01:07]} e6 {[%emt 0:01:25]} 6. Be3 {[%emt 0:08:22]} d5 {[%emt 0:04:32]} 7. e5 {[%emt 0:02:07]} Nfd7 {[%emt 0:00:22]} 8. Ng5 {[%emt 0:01:05]} Bxe2 {[%emt 0:13:52]} 9. Qxe2 {[%emt 0:00:15]} Be7 {[%emt 0:11:34]} 10. Qh5 {[%emt 0:00:53]} g6 {[%emt 0:06:10]} 11. Qh6 {[%emt 0:01:16]} Bf8 {[%emt 0:00:09]} 12. Qh3 {[%emt 0:00:59]} Bg7 {[%emt 0:05:01]} 13. O-O-O {[%emt 0:06:12]} Na6 {[%emt 0:04:50]} 14. f4 {[%emt 0:01:41]} Nc7 {[%emt 0:07:52]} 15. Bf2 {[%emt 0:04:57]} h6 {[%emt 0:00:01]} 16. Nf3 {[%emt 0:00:20]} Nb5 {[%emt 0:00:01]} 17. Ne2 {[%emt 0:03:44]} Qa5 {[%emt 0:00:31]} 18. Kb1 {[%emt 0:01:20]} Na3+ {[%emt 0:01:56]} 19. bxa3 {[%emt 0:08:06]} Qb5+ {[%emt 0:00:06]} 20. Kc1 {[%emt 0:02:47]} Qxe2 {[%emt 0:00:39]} 21. Rd3 {[%emt 0:01:46]} Qxf2 {[%emt 0:08:52]} 22. Re1 {[%emt 0:00:24]} c5 {[%emt 0:03:53]} 23. Rd2 {[%emt 0:00:49]} Qxe1+ {[%emt 0:00:05]} 24. Nxe1 {[%emt 0:00:07]} cxd4 {[%emt 0:00:06]} 25. Nf3 {[%emt 0:00:59]} Nc5 {[%emt 0:01:50]} 26. Nxd4 {[%emt 0:00:43]} Rc8 {[%emt 0:00:18]} 27. Nb5 {[%emt 0:00:24]} O-O {[%emt 0:02:12]} 28. Nxa7 {[%emt 0:08:10]} Ra8 {[%emt 0:00:29]} 29. Qe3 {[%emt 0:00:24]} Rxa7 {[%emt 0:02:46]} 30. Qxc5 {[%emt 0:00:13]} Rfa8 {[%emt 0:00:04]} 31. Rd3 {[%emt 0:13:09]} Bf8 {[%emt 0:00:20]} 32. Qb5 {[%emt 0:00:24]} Bxa3+ {[%emt 0:00:12]} 33. Kd1 {[%emt 0:00:08]} Bf8 {[%emt 0:08:47]} 34. Rc3 {[%emt 0:00:22]} b6 {[%emt 0:01:47]} 35. Qxb6 {[%emt 0:02:39]} Rxa2 {[%emt 0:00:02]} 36. Rc7 {[%emt 0:01:29]} R8a4 {[%emt 0:00:46]} 37. Rc8 {[%emt 0:06:40]} Ra8 {[%emt 0:03:29]} 38. Rc7 {[%emt 0:02:05]} R8a4 {[%emt 0:00:04]} 39. Qb8 {[%emt 0:02:34]} Rc4 {[%emt 0:01:48]} 40. Rxc4 {[%emt 0:00:37]} dxc4 {[%emt 0:00:04]} 41. Qc8 {[%emt 0:00:37]} Ra4 {[%emt 0:00:49]} 42. Qc6 {[%emt 0:00:28]} Rb4 {[%emt 0:00:15]} 43. Ke2 {[%emt 0:00:42]} h5 {[%emt 0:00:30]} 44. Kf3 {[%emt 0:01:12]} Kg7 {[%emt 0:03:52]} 45. c3 {[%emt 0:01:09]} Rb3 {[%emt 0:00:01]} 46. Qxc4 {[%emt 0:00:13]} Ra3 {[%emt 0:00:02]} 47. Ke4 {[%emt 0:01:33]} Ra1 {[%emt 0:00:05]} 48. Qc7 {[%emt 0:00:28]} Rh1 {[%emt 0:00:13]} 49. Qa7 {[%emt 0:00:32]} Rxh2 {[%emt 0:00:57]} 50. Qg1 {[%emt 0:02:07]} Rh4 {[%emt 0:00:02]} 51. Kf3 {[%emt 0:03:03]} g5 {[%emt 0:02:30]} 52. g3 {[%emt 0:01:18]} Rg4 {[%emt 0:00:31]} 53. Qh2 {[%emt 0:00:12]} Kh6 {[%emt 0:01:13]} 54. Qd2 {[%emt 0:00:56]} gxf4 {[%emt 0:00:10]} 55. gxf4 {[%emt 0:00:38]} Kg7 {[%emt 0:00:08]} 56. Qh2 {[%emt 0:01:29]} Kh6 {[%emt 0:01:16]} 57. Qa2 {[%emt 0:00:26]} Kg7 {[%emt 0:00:54]} 58. Qa7 {[%emt 0:00:39]} Rg6 {[%emt 0:00:23]} 59. Qf2 {[%emt 0:00:22]} Be7 {[%emt 0:00:01]} 60. c4 {[%emt 0:00:20]} h4 {[%emt 0:00:08]} 61. c5 {[%emt 0:01:10]} Rg3+ {[%emt 0:00:27]} 62. Ke4 {[%emt 0:00:24]} Rc3 {[%emt 0:00:17]} 63. Qg2+ {[%emt 0:00:46]} Kf8 {[%emt 0:00:36]} 64. f5 {[%emt 0:01:00]} h3 {[%emt 0:00:50]} 65. Qd2 {[%emt 0:00:24]} exf5+ {[%emt 0:01:41]} 66. Kxf5 {[%emt 0:00:05]} Rxc5 {[%emt 0:00:28]} 67. Qh6+ {[%emt 0:00:17]} Ke8 {[%emt 0:00:30]} 68. Qh8+ {[%emt 0:00:16]} Bf8 {[%emt 0:00:11]} 69. Qxh3 {[%emt 0:02:17]} 1/2-1/2

[Event "New York Summer GM-A 2022"]
[Site "New York"]
[Date "2022.07.10"]
[Round "6.3"]
[White "Lu, Maximillian"]
[Black "Dragun, Kamil"]
[Result "0-1"]
[ECO "E11"]
[WhiteElo "2398"]
[BlackElo "2563"]
[Annotator "TA"]
[PlyCount "78"]
[EventDate "2022.07.08"]
[EventType "tourn"]
[EventCountry "USA"]
[SourceTitle "playchess.com"]
[Source "ChessBase"]
[SourceQuality "1"]
[TimeControl "5400+30"]

{[%evp 18,78,17,1,4,10,31,0,7,9,0,0,0,0,58,-27,-28,-36,-18,-20,-12,-19,-11,0,0,-95,-119,-131,-106,-123,-51,-118,-106,-298,-287,-277,-268,-237,-243,-225,-178,-336,-258,-262,-270,-268,-260,-667,-617,-588,-553,-505,-514,-518,-504,-914,-901,-843,-807,-831,-782,-29991,-29992]} 1. c4 {[%emt 0:00:03]} e6 {[%emt 0:01:06]} 2. g3 {[%emt 0:00:29]} d5 {[%emt 0:00:45]} 3. d4 {[%emt 0:00:32]} Nf6 {[%emt 0:00:12]} 4. Bg2 {[%emt 0:00:06]} Bb4+ {[%emt 0:00:09]} 5. Bd2 {[%emt 0:01:14]} Be7 {[%emt 0:00:37]} 6. Nf3 {[%emt 0:00:04]} c6 {[%emt 0:00:07]} 7. Qc2 {[%emt 0:00:20]} Nbd7 {[%emt 0:00:09]} 8. O-O {[%emt 0:00:10]} O-O {[%emt 0:00:10]} 9. Rd1 {[%emt 0:00:13]} b6 {[%emt 0:00:32]} 10. b3 {[%emt 0:00:17]} a5 {[%emt 0:00:28] E11: Bogo-Indian.} 11. Bc3 {[%emt 0:15:19]} Ne4 {[%emt 0:00:23] [#]} 12. Nfd2 $146 {[%emt 0:04:13]} ({Predecessor:} 12. Ne5 Nxe5 13. Bxe4 Ng6 14. Bg2 Ba6 15. Nd2 f5 16. e3 Rc8 17. Rac1 Ba3 18. Bb2 {0-1 (63) Sargissian,G (2596)-Sarana,A (2689) Riga 2021}) 12... f5 {[%emt 0:03:40] The position is equal.} 13. Nxe4 {[%emt 0:04:02]} fxe4 {[%emt 0:00:12]} 14. Nd2 {[%emt 0:00:11]} Bd6 {[%emt 0:14:21]} 15. f3 {[%emt 0:05:42]} exf3 {[%emt 0:03:26]} (15... Qg5 $11) 16. Bxf3 {[%emt 0:01:58]} (16. exf3 $14 Nf6 17. Re1) 16... Qg5 {[%emt 0:05:43][%cal Od6g3] Hoping for ...Bxg3!} 17. Kg2 {[%emt 0:02:26]} Nf6 {[%emt 0:07:59]} 18. Nf1 {[%emt 0:04:08]} Bd7 {[%emt 0:21:32]} 19. Rac1 {[%emt 0:05:33]} Ne4 {[%emt 0:06:44]} 20. Bxe4 {[%emt 0:09:07]} dxe4 {[%emt 0:00:10]} 21. Qxe4 {[%emt 0:19:43]} (21. c5 $1 $11 Bf4 22. Ra1) 21... Rf4 $1 $17 {[%emt 0:00:18]} ({Resist} 21... Qf6 22. c5 Bc7 23. cxb6 Bxb6 24. Nd2 $16) 22. Qe3 {[%emt 0:00:34][%cal Oc4c5]} Raf8 $36 {[%emt 0:00:35][%cal Oe6e5][%mdl 2048] Keeping White busy.} 23. Nd2 {[%emt 0:00:45]} Qg4 {[%emt 0:14:33] Black is more active.} (23... c5 $1 $17 {White must now prevent ...Bc6+.} 24. Nf3 Qg4) 24. Rf1 {[%emt 0:19:03]} (24. Nf3 $15) 24... e5 $1 {[%emt 0:01:58][%cal Re5d4]} 25. Nf3 {[%emt 0:02:38] Loses the game.} (25. c5 $17 {is the only way for White.} exd4 26. Bxd4 Rxd4 27. cxd6) 25... exd4 {[%emt 0:07:02]} 26. Bxd4 {[%emt 0:00:02]} Re4 {[%emt 0:00:08]} 27. Qf2 {[%emt 0:00:02]} c5 {[%emt 0:00:17][%mdl 1024] Black has strong compensation.} 28. Bc3 {[%emt 0:01:25]} Bc6 {[%emt 0:05:07] aiming for ...h5. This bishop pair is nice.} 29. Rcd1 $2 {[%emt 0:00:50]} (29. Kg1 {was the only chance.}) 29... Bc7 {[%emt 0:00:07][%cal Bd6c7,Bc7f4,Bf4e5][%mdl 32] Strongly threatening ...h5.} 30. Kg1 {[%emt 0:01:50] [#]} h5 $1 {[%emt 0:00:54][%cal Oh5h4] And now ...h4! would win.} 31. Qg2 {[%emt 0:01:14]} Re3 {[%emt 0:00:52][%csl LRc3,LRf3]} 32. Bd2 {[%emt 0:01:29]} (32. Ba1) 32... Rexf3 {[%emt 0:01:55]} ({And not} 32... Bxf3 33. exf3 Rexf3 34. Rxf3 Rxf3 35. Rf1 $11) 33. exf3 {[%emt 0:00:05]} Rxf3 {[%emt 0:00:02]} 34. Bf4 {[%emt 0:01:09]} Bxf4 {[%emt 0:03:05]} 35. Rd8+ {[%emt 0:01:04] [#]} Kf7 $1 {[%emt 0:01:42] ( -> ...Be3+)} 36. Rxf3 {[%emt 0:00:00]} (36. Rd3 $142 Rxd3 37. Qxc6) 36... Bxf3 $19 {[%emt 0:00:06]} 37. Qf2 {[%emt 0:00:23] Against Be3} Be5 {[%emt 0:00:22]} 38. h3 {[%emt 0:00:00]} Qe4 {[%emt 0:00:41][%cal Oh5h4]} 39. Kh2 {[%emt 0:01:04]} h4 {[%emt 0:00:18] Weighted Error Value: White=0.76/Black=0.16 (very precise)} 0-1

[Event "New York Summer GM-A 2022"]
[Site "New York"]
[Date "2022.07.10"]
[Round "6.4"]
[White "Korley, Kassa"]
[Black "Saric, Ante"]
[Result "1/2-1/2"]
[WhiteElo "2421"]
[BlackElo "2510"]
[Annotator "TA"]
[PlyCount "38"]
[EventDate "2022.07.08"]
[EventType "tourn"]
[EventCountry "USA"]
[SourceTitle "playchess.com"]
[Source "ChessBase"]
[SourceQuality "1"]
[TimeControl "5400+30"]

{[%evp 16,17,-37,-45]} 1. Nf3 {[%emt 0:00:03]} Nf6 {[%emt 0:00:21]} 2. g3 {[%emt 0:00:07]} c5 {[%emt 0:00:05]} 3. Bg2 {[%emt 0:00:13]} Nc6 {[%emt 0:00:06]} 4. c4 {[%emt 0:00:07]} d5 {[%emt 0:00:06]} 5. cxd5 {[%emt 0:03:13]} Nxd5 {[%emt 0:00:06]} 6. O-O {[%emt 0:02:12]} e5 {[%emt 0:00:17]} 7. Nc3 {[%emt 0:00:04]} Be6 {[%emt 0:00:04]} 8. d3 {[%emt 0:02:08]} Be7 {[%emt 0:00:31]} 9. Bd2 {[%emt 0:00:30] [#]} {Predecessor:} O-O $146 {A30: Symmetrical English: Double Fianchetto and Hedgehog.} 10. Nxd5 Bxd5 11. Bc3 f6 12. a4 Qd7 13. Nd2 Be6 14. a5 Rab8 15. Qa4 Rfc8 16. Rfc1 Kf8 17. Kf1 Rc7 18. Nc4 Nd4 19. Qxd7 Bxd7 {0-1 (79) Ivanchuk,V (2678)-Leko,P (2663) chess24.com INT 2020} 1/2-1/2

[Event "New York Summer GM-A 2022"]
[Site "New York"]
[Date "2022.07.11"]
[Round "7.1"]
[White "Khamrakulov, Djurabek"]
[Black "Zhou, Liran"]
[Result "1/2-1/2"]
[ECO "B22"]
[WhiteElo "2492"]
[BlackElo "2393"]
[Annotator "TA"]
[PlyCount "86"]
[EventDate "2022.07.08"]
[EventType "tourn"]
[EventCountry "USA"]
[SourceTitle "playchess.com"]
[Source "ChessBase"]
[SourceQuality "1"]
[TimeControl "5400+30"]

{[%evp 15,86,7,9,0,0,0,0,0,0,0,0,0,0,24,16,0,0,0,15,9,3,0,13,8,37,0,0,0,0,0,0,0,0,0,0,0,0,0,0,0,0,0,0,-40,-39,-39,-39,-39,-39,-120,-75,-66,-63,-52,-22,-4,0,0,0,0,0,0,0,0,0,0,0,0,0,0,0,0,0]} 1. e4 {[%emt 0:00:03][%cal Be2e4,Be4e5][%mdl 32]} c5 {[%emt 0:03:18]} 2. c3 {[%emt 0:00:07][%cal Bc2c3,Bc3d4,Bd4e5][%mdl 32]} Nf6 {[%emt 0:00:03]} 3. e5 {[%emt 0:00:07]} Nd5 {[%emt 0:00:04]} 4. Nf3 {[%emt 0:00:31]} Nc6 {[%emt 0:00:08]} 5. d4 {[%emt 0:00:21]} cxd4 {[%emt 0:00:14]} 6. cxd4 {[%emt 0:00:04]} d6 {[%emt 0:00:09]} 7. Bc4 {[%emt 0:00:04]} dxe5 $1 {[%emt 0:00:07][%mdl 4] now scores much better than the old 7...Nb6.} 8. dxe5 {[%emt 0:00:04]} Ndb4 {[%emt 0:00:08]} 9. O-O {[%emt 0:00:12] B22: Sicilian: 2 c3.} Qxd1 {[%emt 0:00:47]} 10. Rxd1 {[%emt 0:00:02]} Bg4 {[%emt 0:00:10]} ({Don't do} 10... Nc2 11. Na3 Nxa3 12. bxa3 $16) 11. Nc3 {[%emt 0:00:15]} Bxf3 {[%emt 0:01:04]} 12. gxf3 {[%emt 0:00:03] aiming for Nb5.} Nxe5 {[%emt 0:00:18]} 13. Bb3 {[%emt 0:00:01]} e6 {[%emt 0:02:47] [#]} 14. Nb5 $146 {[%emt 0:00:38]} ({Predecessor:} 14. f4 Nf3+ 15. Kh1 Bc5 16. Ne4 Bb6 17. Ba4+ Nc6 18. Nd6+ Ke7 19. Nxb7 Nfd4 20. b3 {1-0 (30) Godena,M (2442)-Meskovs,N (2559) Cannes 2022}) 14... Na6 {[%emt 0:00:44] Inhibits Nc7+.} (14... Nxf3+ $2 15. Kg2 Rd8 16. Rxd8+ (16. Kxf3 Rxd1 17. Bxd1 a6 $18) 16... Kxd8 17. Kxf3 $18) 15. Ba4 {[%emt 0:00:06][%mdl 1024] [#] Strongly threatening Nc7+. White has compensation.} Nc6 {[%emt 0:00:19]} (15... Nxf3+ $2 16. Kg2 $18) 16. a3 {[%emt 0:10:43]} Be7 {[%emt 0:00:40]} 17. b4 {[%emt 0:06:29]} O-O {[%emt 0:10:29]} 18. Be3 {[%emt 0:06:58]} Rfd8 {[%emt 0:12:06] Prevents Rd7.} 19. Rac1 {[%emt 0:12:40]} h6 {[%emt 0:12:10]} 20. Kg2 {[%emt 0:04:06]} (20. Bc2 $5 {[%cal Rd1d8]}) 20... Rac8 {[%emt 0:22:54]} 21. Rxd8+ {[%emt 0:12:14]} Rxd8 {[%emt 0:00:17]} 22. Bc2 {[%emt 0:00:39]} Rc8 {[%emt 0:15:29]} 23. Nxa7 {[%emt 0:08:35]} Nxa7 {[%emt 0:00:08]} 24. Bxa7 {[%emt 0:00:04][%cal Oc2h7] This bishop pair is nice.} f5 {[%emt 0:11:04]} 25. b5 {[%emt 0:08:10]} Nb8 {[%emt 0:02:26]} 26. a4 {[%emt 0:00:43]} Bg5 {[%emt 0:01:50]} 27. Re1 {[%emt 0:02:43] [#] Threatens to win with Bb3.} Rxc2 {[%emt 0:00:10]} 28. Bxb8 $11 {[%emt 0:00:02][%mdl 4096] Endgame KRB-KRB} Kf7 {[%emt 0:00:27]} 29. Ba7 {[%emt 0:06:49]} Ra2 {[%emt 0:00:52]} 30. Rd1 {[%emt 0:14:45]} Ke8 {[%emt 0:00:14] Against Rd7} 31. Rd6 {[%emt 0:00:07]} Rxa4 {[%emt 0:00:24]} 32. Bb6 {[%emt 0:00:01]} (32. Be3 $1 $15) 32... Ke7 {[%emt 0:02:14]} 33. Bc5 {[%emt 0:00:08]} Rc4 {[%emt 0:00:52]} 34. Ba3 {[%emt 0:00:11]} Kf6 {[%emt 0:01:47] ...Rc2 is the strong threat.} 35. Rd7 {[%emt 0:00:56] The position is equal.} Rc2 {[%emt 0:00:19]} 36. Be7+ {[%emt 0:06:44]} Kg6 $1 {[%emt 0:00:07] And now ...Be3 would win.} 37. Bxg5 {[%emt 0:00:04]} hxg5 {[%emt 0:00:03]} 38. Rxb7 {[%emt 0:00:06] KR-KR} Rb2 {[%emt 0:00:09]} 39. b6 {[%emt 0:00:28]} Kf6 {[%emt 0:00:25]} 40. Rb8 {[%emt 0:00:59]} Ke5 {[%emt 0:00:15]} 41. b7 {[%emt 0:01:42]} Kf4 {[%emt 0:00:25]} 42. Re8 {[%emt 0:00:14]} Rxb7 {[%emt 0:00:05]} 43. Rxe6 {[%emt 0:00:04]} g4 {[%emt 0:00:41] Weighted Error Value: White=0.06 (flawless) /Black=0.04 (flawless)} 1/2-1/2

[Event "New York Summer GM-A 2022"]
[Site "New York"]
[Date "2022.07.11"]
[Round "7.2"]
[White "Saric, Ante"]
[Black "Kaliksteyn, Alexander"]
[Result "1/2-1/2"]
[ECO "E04"]
[WhiteElo "2510"]
[BlackElo "2380"]
[Annotator "TA"]
[PlyCount "55"]
[EventDate "2022.07.08"]
[EventType "tourn"]
[EventCountry "USA"]
[SourceTitle "playchess.com"]
[Source "ChessBase"]
[SourceQuality "1"]
[TimeControl "5400+30"]

{[%evp 15,47,24,31,17,9,14,15,6,15,4,4,4,4,1,1,7,0,0,0,0,0,0,0,0,0,0,0,0,0,0,0,0,0,0]} 1. Nf3 {[%emt 0:00:09]} d5 {[%emt 0:00:08]} 2. g3 {[%emt 0:00:16]} c5 {[%emt 0:00:18]} 3. Bg2 {[%emt 0:00:05]} Nc6 {[%emt 0:00:06]} 4. d4 {[%emt 0:00:05]} Nf6 {[%emt 0:00:16]} 5. O-O {[%emt 0:00:07]} e6 {[%emt 0:00:11]} 6. c4 {[%emt 0:00:05]} dxc4 {[%emt 0:00:14]} 7. Qa4 {[%emt 0:00:05]} Bd7 {[%emt 0:01:38]} 8. Qxc4 {[%emt 0:00:09]} b5 {[%emt 0:00:35]} 9. Qc3 {[%emt 0:00:06] E04: Open Catalan: 5 Nf3.} b4 {[%emt 0:00:27] The position is equal.} 10. Qd3 {[%emt 0:00:10]} Rc8 {[%emt 0:00:36]} 11. dxc5 {[%emt 0:00:05]} Bxc5 {[%emt 0:00:33]} 12. Bg5 {[%emt 0:00:29] 12.Nbd2 is the modern continuation.} h6 {[%emt 0:08:16]} 13. Bxf6 {[%emt 0:00:13]} Qxf6 {[%emt 0:00:06]} ({Don't play} 13... gxf6 14. Nbd2 $14) 14. Nbd2 {[%emt 0:00:09] [#] And now Ne4 would win.} Ne5 {[%emt 0:04:49]} 15. Nxe5 {[%emt 0:00:13]} Qxe5 {[%emt 0:00:05]} 16. Nc4 {[%emt 0:00:29]} Qc7 {[%emt 0:29:19]} 17. Rfd1 {[%emt 0:00:50]} Bb5 {[%emt 0:00:25] [#] Strongly threatening ...Bxc4.} 18. Nd6+ {[%emt 0:01:00]} Bxd6 {[%emt 0:00:09]} 19. Qxb5+ {[%emt 0:00:05]} Ke7 $1 {[%emt 0:00:10]} 20. Rd3 {[%emt 0:01:23]} Rhd8 {[%emt 0:01:08]} 21. Rad1 {[%emt 0:00:06]} Bc5 {[%emt 0:02:15]} 22. Rxd8 {[%emt 0:00:38]} Rxd8 {[%emt 0:00:11]} 23. Rxd8 {[%emt 0:00:04]} Kxd8 {[%emt 0:00:05]} 24. e3 {[%emt 0:00:12] [#] An interesting draw.  Weighted Error Value: White=0.02 (flawless) /Black=0.01 (flawless)} {Predecessor:} Ke7 $146 25. Bf3 g6 26. Kg2 h5 27. Bc6 Qb6 28. Qxb6 {½-½ (28) Bocharov,D (2528)-Rozum,I (2566) Khanty-Mansiysk 2020} 1/2-1/2

[Event "New York Summer GM-A 2022"]
[Site "New York"]
[Date "2022.07.11"]
[Round "7.4"]
[White "Song, Michael"]
[Black "Lu, Maximillian"]
[Result "1/2-1/2"]
[ECO "A30"]
[WhiteElo "2409"]
[BlackElo "2398"]
[Annotator "RC"]
[PlyCount "110"]
[EventDate "2022.07.08"]
[EventType "tourn"]
[EventCountry "USA"]
[SourceTitle "playchess.com"]
[Source "ChessBase"]
[SourceQuality "1"]
[TimeControl "5400+30"]

1. Nf3 {[%emt 0:03:46]} Nf6 {[%emt 0:00:18]} 2. b3 {[%emt 0:01:06]} c5 {[%emt 0:00:55]} 3. c4 {[%emt 0:03:01]} Nc6 {[%emt 0:00:35]} 4. Bb2 {[%emt 0:00:36]} d5 {[%emt 0:00:01]} 5. cxd5 {[%emt 0:01:13]} Nxd5 {[%emt 0:00:02]} 6. Nc3 {[%emt 0:05:59]} Bg4 {[%emt 0:06:12]} 7. h3 {[%emt 0:02:06]} Bh5 {[%emt 0:09:50]} 8. d3 {[%emt 0:08:22]} Nd4 {[%emt 0:05:08]} 9. Nxd5 {[%emt 0:10:53]} Qxd5 {[%emt 0:04:54]} 10. Nd2 {[%emt 0:11:58]} e5 {[%emt 0:03:46]} 11. Ne4 {[%emt 0:03:21]} Bg6 {[%emt 0:06:17]} 12. Nc3 {[%emt 0:01:47]} Qd7 {[%emt 0:00:01]} 13. e4 {[%emt 0:02:28]} Be7 {[%emt 0:05:52]} 14. Be2 {[%emt 0:02:31]} f6 {[%emt 0:05:54]} 15. Bg4 {[%emt 0:02:48]} Qd6 {[%emt 0:01:14]} 16. Nd5 {[%emt 0:01:34]} Bf7 {[%emt 0:06:28]} 17. Bxd4 {[%emt 0:03:32]} cxd4 {[%emt 0:05:23]} 18. Rc1 {[%emt 0:00:10]} Bxd5 {[%emt 0:01:45]} 19. exd5 {[%emt 0:00:08]} Qxd5 {[%emt 0:02:22]} 20. O-O {[%emt 0:00:36]} O-O {[%emt 0:01:05]} 21. Rc7 {[%emt 0:05:07]} Bb4 {[%emt 0:05:11]} 22. Bf3 {[%emt 0:00:57]} Qa5 {[%emt 0:00:02]} 23. Rxb7 {[%emt 0:00:14]} Rab8 {[%emt 0:07:11]} 24. Rxb8 {[%emt 0:02:32]} Rxb8 {[%emt 0:00:02]} 25. Be4 {[%emt 0:00:29]} g6 {[%emt 0:05:10]} 26. Qg4 {[%emt 0:01:15]} Qc7 {[%emt 0:00:22]} 27. h4 {[%emt 0:06:21]} Kh8 {[%emt 0:01:55]} 28. Qe6 {[%emt 0:01:01]} Kg7 {[%emt 0:04:23]} 29. g3 {[%emt 0:02:22]} Rb6 {[%emt 0:02:49]} 30. Qe8 {[%emt 0:00:24]} Rb8 {[%emt 0:00:05]} 31. Qe6 {[%emt 0:00:19]} Qc8 {[%emt 0:03:47]} 32. Qd5 {[%emt 0:00:53]} Qd8 {[%emt 0:00:09]} 33. Qxd8 {[%emt 0:05:46]} Rxd8 {[%emt 0:00:01]} 34. Rc1 {[%emt 0:00:09]} Bc3 {[%emt 0:00:02]} 35. Rc2 {[%emt 0:03:53]} f5 {[%emt 0:02:32]} 36. Bg2 {[%emt 0:00:24]} a5 {[%emt 0:00:52]} 37. Kf1 {[%emt 0:01:15]} h6 {[%emt 0:01:17]} 38. f4 {[%emt 0:00:12]} exf4 {[%emt 0:02:39]} 39. gxf4 {[%emt 0:00:06]} Re8 {[%emt 0:00:46]} 40. Re2 {[%emt 0:00:16]} Rxe2 {[%emt 0:01:23]} 41. Kxe2 {[%emt 0:00:02]} Bb4 {[%emt 0:00:11]} 42. Kf2 {[%emt 0:01:24]} Bd6 {[%emt 0:00:28]} 43. Kf3 {[%emt 0:00:14]} Bb4 {[%emt 0:00:33]} 44. Kf2 {[%emt 0:00:29]} Bd2 {[%emt 0:00:02]} 45. Kg3 {[%emt 0:00:11]} Be1+ {[%emt 0:00:05]} 46. Kh3 {[%emt 0:00:10]} Kf6 {[%emt 0:00:16]} 47. Bc6 {[%emt 0:00:29]} Ke7 {[%emt 0:00:09]} 48. Bd5 {[%emt 0:00:30]} Bf2 {[%emt 0:00:26]} 49. Bc6 {[%emt 0:00:27]} Be1 {[%emt 0:00:02]} 50. Bd5 {[%emt 0:00:07]} Kf6 {[%emt 0:00:06]} 51. Bc6 {[%emt 0:00:04]} g5 {[%emt 0:00:30]} 52. hxg5+ {[%emt 0:00:05]} hxg5 {[%emt 0:00:01]} 53. fxg5+ {[%emt 0:00:10]} Kxg5 {[%emt 0:00:05]} 54. Kg2 {[%emt 0:00:21]} Kf4 {[%emt 0:00:16]} 55. Bd7 {[%emt 0:00:13]} Bb4 {[%emt 0:00:25]} 1/2-1/2

[Event "New York Summer GM-A 2022"]
[Site "New York"]
[Date "2022.07.11"]
[Round "7.5"]
[White "Ostrovskiy, Aleksandr"]
[Black "Williams, Justus"]
[Result "0-1"]
[ECO "B51"]
[WhiteElo "2392"]
[BlackElo "2390"]
[Annotator "RC"]
[PlyCount "70"]
[EventDate "2022.07.08"]
[EventType "tourn"]
[EventCountry "USA"]
[SourceTitle "playchess.com"]
[Source "ChessBase"]
[SourceQuality "1"]
[TimeControl "5400+30"]

1. e4 {[%emt 0:00:34]} c5 {[%emt 0:00:34]} 2. Nf3 {[%emt 0:00:06]} d6 {[%emt 0:00:09]} 3. Bb5+ {[%emt 0:00:21]} Nd7 {[%emt 0:00:09]} 4. a4 {[%emt 0:02:30]} Ngf6 {[%emt 0:01:07]} 5. Nc3 {[%emt 0:01:07]} g6 {[%emt 0:03:08]} 6. O-O {[%emt 0:02:46]} Bg7 {[%emt 0:02:38]} 7. a5 {[%emt 0:06:05]} O-O {[%emt 0:02:11]} 8. Re1 {[%emt 0:02:35]} Ne8 {[%emt 0:01:46]} 9. d4 {[%emt 0:08:05]} Nc7 {[%emt 0:02:45]} 10. Bf1 {[%emt 0:01:20]} cxd4 {[%emt 0:03:04]} 11. Nxd4 {[%emt 0:00:45]} Ne5 {[%emt 0:01:00]} 12. h3 {[%emt 0:15:46]} Nc6 {[%emt 0:03:20]} 13. Nb3 {[%emt 0:02:25]} Be6 {[%emt 0:04:50]} 14. Nd5 {[%emt 0:02:30]} f5 {[%emt 0:05:24]} 15. Nxc7 {[%emt 0:20:28]} Qxc7 {[%emt 0:00:13]} 16. exf5 {[%emt 0:00:06]} Bxf5 {[%emt 0:03:03]} 17. c3 {[%emt 0:01:18]} Kh8 {[%emt 0:05:28]} 18. Be3 {[%emt 0:08:00]} e5 {[%emt 0:06:23]} 19. Qd2 {[%emt 0:02:56]} Be6 {[%emt 0:01:41]} 20. c4 {[%emt 0:01:43]} Ne7 {[%emt 0:01:27]} 21. Rac1 {[%emt 0:10:55]} Nf5 {[%emt 0:01:30]} 22. Red1 {[%emt 0:00:24]} Qf7 {[%emt 0:05:46]} 23. Bd3 {[%emt 0:04:36]} Rac8 {[%emt 0:04:35]} 24. Bxf5 {[%emt 0:04:13]} gxf5 {[%emt 0:00:45]} 25. Qxd6 {[%emt 0:00:23]} f4 {[%emt 0:11:46]} 26. Bxa7 {[%emt 0:00:01]} f3 {[%emt 0:02:03]} 27. Nc5 {[%emt 0:00:59]} Qg6 {[%emt 0:10:48]} 28. g3 {[%emt 0:00:07]} Rc6 {[%emt 0:00:28]} 29. Qd3 {[%emt 0:00:08]} Qh5 {[%emt 0:01:07]} 30. h4 {[%emt 0:01:38]} Bh3 {[%emt 0:00:02]} 31. Ne4 {[%emt 0:00:34]} Bg2 {[%emt 0:00:51]} 32. Qd7 {[%emt 0:00:32]} Rg6 {[%emt 0:01:31]} 33. Be3 {[%emt 0:00:21]} Rg4 {[%emt 0:00:16]} 34. Ng5 {[%emt 0:00:32]} Rxh4 {[%emt 0:00:25]} 35. gxh4 {[%emt 0:00:27]} Qxh4 {[%emt 0:00:02]} 0-1